[Event "IX Iberoamericano Championship 2023"]
[Site "Panama City"]
[Date "2023.11.27"]
[Round "1.7"]
[White "Cuenca Jimenez, Jose Fernando"]
[Black "Gonzalez Ochoa, Yoana"]
[Result "1-0"]
[ECO "A28"]
[WhiteElo "2505"]
[BlackElo "2085"]
[Annotator "RC"]
[PlyCount "59"]
[EventDate "2023.11.27"]
[EventType "swiss"]
[EventCountry "PAN"]
[SourceTitle "playchess.com"]
[Source "ChessBase"]
[SourceQuality "1"]
[TimeControl "5400+30"]

1. c4 {[%emt 0:00:04]} e5 {[%emt 0:00:14]} 2. Nc3 {[%emt 0:00:06]} Nf6 {[%emt 0:00:09]} 3. Nf3 {[%emt 0:00:05]} Nc6 {[%emt 0:00:11]} 4. e4 {[%emt 0:00:05]} Bc5 {[%emt 0:00:16]} 5. Nxe5 {[%emt 0:00:12]} Nxe5 {[%emt 0:00:09]} 6. d4 {[%emt 0:00:03]} Bb4 {[%emt 0:00:08]} 7. dxe5 {[%emt 0:00:03]} Nxe4 {[%emt 0:00:11]} 8. Qf3 {[%emt 0:00:03]} Nxc3 {[%emt 0:00:32]} 9. bxc3 {[%emt 0:00:04]} Ba5 {[%emt 0:00:04]} 10. Bf4 {[%emt 0:00:43]} Qe7 {[%emt 0:02:03]} 11. Be2 {[%emt 0:03:37]} O-O {[%emt 0:01:46]} 12. O-O {[%emt 0:04:40]} d6 {[%emt 0:07:54]} 13. exd6 {[%emt 0:01:51]} cxd6 {[%emt 0:00:02]} 14. Rad1 {[%emt 0:18:23]} Rd8 {[%emt 0:02:14]} 15. Bd3 {[%emt 0:04:04]} Bxc3 {[%emt 0:07:35]} 16. Bxh7+ {[%emt 0:01:30]} Kxh7 {[%emt 0:00:03]} 17. Qxc3 {[%emt 0:00:11]} Be6 {[%emt 0:00:23]} 18. Rd4 {[%emt 0:14:49]} Rac8 {[%emt 0:06:43]} 19. Qe3 {[%emt 0:08:58]} Rd7 {[%emt 0:15:07]} 20. Bg5 {[%emt 0:03:39]} f6 {[%emt 0:02:55]} 21. Re4 {[%emt 0:03:07]} Re8 {[%emt 0:01:13]} 22. Bh4 {[%emt 0:07:21]} d5 {[%emt 0:04:13]} 23. cxd5 {[%emt 0:01:03]} Rxd5 {[%emt 0:00:03]} 24. h3 {[%emt 0:08:39]} Qd7 {[%emt 0:00:37]} 25. Qxa7 {[%emt 0:09:21]} Rd1 {[%emt 0:02:02]} 26. Rxd1 {[%emt 0:01:06]} Qxd1+ {[%emt 0:00:02]} 27. Kh2 {[%emt 0:00:01]} Qd5 {[%emt 0:00:39]} 28. Qe3 {[%emt 0:01:47]} Qxa2 {[%emt 0:01:12]} 29. Bxf6 {[%emt 0:00:51]} gxf6 {[%emt 0:01:07]} 30. Qg3 {[%emt 0:09:04]} 1-0

[Event "IX Iberoamericano Championship 2023"]
[Site "Panama City"]
[Date "2023.11.27"]
[Round "1.8"]
[White "Guevara Sanchez, Erick Marvin"]
[Black "Miranda Mesa, Elier"]
[Result "0-1"]
[ECO "B41"]
[WhiteElo "2059"]
[BlackElo "2490"]
[Annotator "RC"]
[PlyCount "94"]
[EventDate "2023.11.27"]
[EventType "swiss"]
[EventCountry "PAN"]
[SourceTitle "playchess.com"]
[Source "ChessBase"]
[SourceQuality "1"]
[TimeControl "5400+30"]

1. e4 {[%emt 0:00:04]} c5 {[%emt 0:01:12]} 2. c4 {[%emt 0:00:10]} Nc6 {[%emt 0:03:05]} 3. Ne2 {[%emt 0:00:10]} Nf6 {[%emt 0:05:40]} 4. Nbc3 {[%emt 0:00:09]} e6 {[%emt 0:00:05]} 5. d4 {[%emt 0:01:08]} cxd4 {[%emt 0:00:42]} 6. Nxd4 {[%emt 0:00:19]} Qc7 {[%emt 0:03:17]} 7. Nc2 {[%emt 0:05:41]} a6 {[%emt 0:01:00]} 8. Be2 {[%emt 0:04:03]} b6 {[%emt 0:11:18]} 9. O-O {[%emt 0:06:50]} Bb7 {[%emt 0:00:59]} 10. f4 {[%emt 0:05:17]} d6 {[%emt 0:00:37]} 11. Qd3 {[%emt 0:09:51]} Rc8 {[%emt 0:04:31]} 12. Kh1 {[%emt 0:02:52]} Be7 {[%emt 0:02:22]} 13. Bd2 {[%emt 0:11:44]} O-O {[%emt 0:02:23]} 14. Rac1 {[%emt 0:00:38]} Nb8 {[%emt 0:07:21]} 15. b4 {[%emt 0:04:37]} Nbd7 {[%emt 0:00:49]} 16. a3 {[%emt 0:01:07]} Rfe8 {[%emt 0:00:38]} 17. Ne3 {[%emt 0:06:21]} Qb8 {[%emt 0:02:54]} 18. Bf3 {[%emt 0:02:48]} Qa8 {[%emt 0:01:39]} 19. Qd4 {[%emt 0:02:39]} Red8 {[%emt 0:07:39]} 20. Qd3 {[%emt 0:03:16]} Rc7 {[%emt 0:04:19]} 21. Rc2 {[%emt 0:09:44]} Rdc8 {[%emt 0:04:01]} 22. Rfc1 {[%emt 0:00:39]} Nf8 {[%emt 0:02:26]} 23. Be1 {[%emt 0:00:56]} N8d7 {[%emt 0:08:38]} 24. Bg3 {[%emt 0:02:05]} Rd8 {[%emt 0:04:18]} 25. Kg1 {[%emt 0:03:41]} Rcc8 {[%emt 0:00:41]} 26. Kh1 {[%emt 0:00:34]} h6 {[%emt 0:03:02]} 27. Kg1 {[%emt 0:01:06]} Ne8 {[%emt 0:02:46]} 28. Rf1 {[%emt 0:06:19]} a5 {[%emt 0:00:55]} 29. Rb1 {[%emt 0:04:37]} Bf6 {[%emt 0:01:42]} 30. Nb5 {[%emt 0:00:28]} Bc6 {[%emt 0:01:15]} 31. Ng4 {[%emt 0:01:18]} Be7 {[%emt 0:00:40]} 32. Ne3 {[%emt 0:00:43]} axb4 {[%emt 0:04:27]} 33. axb4 {[%emt 0:00:01]} Bxb5 {[%emt 0:00:07]} 34. cxb5 {[%emt 0:00:03]} Qa4 {[%emt 0:02:28]} 35. Rxc8 {[%emt 0:00:57]} Rxc8 {[%emt 0:00:01]} 36. f5 {[%emt 0:00:36]} Bf6 {[%emt 0:01:58]} 37. fxe6 {[%emt 0:01:10]} fxe6 {[%emt 0:00:23]} 38. Ng4 {[%emt 0:01:32]} Qc2 {[%emt 0:02:02]} 39. Qxc2 {[%emt 0:00:13]} Rxc2 {[%emt 0:00:01]} 40. Nxf6+ {[%emt 0:00:51]} gxf6 {[%emt 0:00:28]} 41. Rd1 {[%emt 0:00:09]} Ne5 {[%emt 0:03:37]} 42. Bh5 {[%emt 0:00:13]} Ng7 {[%emt 0:01:32]} 43. Bf3 {[%emt 0:02:40]} Nc4 {[%emt 0:00:42]} 44. Bxd6 {[%emt 0:00:40]} e5 {[%emt 0:00:17]} 45. Rd3 {[%emt 0:01:25]} Ne6 {[%emt 0:00:19]} 46. Bg4 {[%emt 0:00:34]} Nf4 {[%emt 0:00:50]} 47. Rd1 {[%emt 0:00:30]} Ne3 {[%emt 0:00:13]} 0-1

[Event "IX Iberoamericano Championship 2023"]
[Site "Panama City"]
[Date "2023.11.27"]
[Round "1.9"]
[White "Soto Hernandez, Henry"]
[Black "Gutierrez Espinosa, Karen"]
[Result "1-0"]
[ECO "D36"]
[WhiteElo "2490"]
[BlackElo "2059"]
[Annotator "RC"]
[PlyCount "125"]
[EventDate "2023.11.27"]
[EventType "swiss"]
[EventCountry "PAN"]
[SourceTitle "playchess.com"]
[Source "ChessBase"]
[SourceQuality "1"]
[TimeControl "5400+30"]

1. d4 {[%emt 0:00:03]} d5 {[%emt 1:31:00]} 2. c4 {[%emt 0:00:04]} e6 {[%emt 0:00:00]} 3. Nc3 {[%emt 0:00:10]} Nf6 {[%emt 0:00:00]} 4. Bg5 {[%emt 0:00:14]} Be7 {[%emt 0:00:00]} 5. e3 {[%emt 0:00:16]} c6 {[%emt 0:00:00]} 6. cxd5 {[%emt 0:01:03]} exd5 {[%emt 0:00:00]} 7. Bd3 {[%emt 0:00:05]} O-O {[%emt 0:00:00]} 8. Qc2 {[%emt 0:00:12]} h6 {[%emt 0:00:00]} 9. Bf4 {[%emt 0:01:36]} Nbd7 {[%emt 0:00:00]} 10. h3 {[%emt 0:00:23]} Nb6 {[%emt 0:00:00]} 11. Nf3 {[%emt 0:00:24]} Be6 {[%emt 0:00:00]} 12. O-O {[%emt 0:01:06]} Rc8 {[%emt 0:00:00]} 13. Rfd1 {[%emt 0:00:24]} Kh8 {[%emt 0:00:00]} 14. Rac1 {[%emt 0:00:43]} Bd6 {[%emt 0:00:00]} 15. Bxd6 {[%emt 0:10:31]} Qxd6 {[%emt 0:00:00]} 16. a3 {[%emt 0:11:25]} Nfd7 {[%emt 0:00:00]} 17. Qe2 {[%emt 0:03:06]} Qe7 {[%emt 0:00:00]} 18. Nd2 {[%emt 0:05:34]} f5 {[%emt 0:00:00]} 19. f4 {[%emt 0:04:15]} Nf6 {[%emt 0:00:00]} 20. Nf3 {[%emt 0:00:10]} Nbd7 {[%emt 0:00:00]} 21. Nh4 {[%emt 0:04:59]} Bf7 {[%emt 0:00:00]} 22. Nxf5 {[%emt 0:04:31]} Qe6 {[%emt 0:00:00]} 23. Ng3 {[%emt 0:00:32]} Rce8 {[%emt 0:00:00]} 24. Re1 {[%emt 0:00:21]} Bg8 {[%emt 0:00:00]} 25. Bg6 {[%emt 0:11:53]} Bf7 {[%emt 0:00:00]} 26. Bf5 {[%emt 0:00:29]} Qd6 {[%emt 0:00:00]} 27. Qf3 {[%emt 0:01:40]} Nb6 {[%emt 0:00:00]} 28. Bd3 {[%emt 0:01:14]} Qd7 {[%emt 0:00:00]} 29. Rcd1 {[%emt 0:00:58]} Bg8 {[%emt 0:00:00]} 30. Bg6 {[%emt 0:02:15]} Bf7 {[%emt 0:00:00]} 31. Bf5 {[%emt 0:00:11]} Be6 {[%emt 0:00:00]} 32. Bd3 {[%emt 0:01:09]} Bg8 {[%emt 0:00:00]} 33. Kh1 {[%emt 0:04:03]} Bh7 {[%emt 0:00:00]} 34. f5 {[%emt 0:00:10]} Nc8 {[%emt 0:00:00]} 35. e4 {[%emt 0:12:05]} dxe4 {[%emt 0:00:00]} 36. Bxe4 {[%emt 0:00:12]} Nxe4 {[%emt 0:00:00]} 37. Ncxe4 {[%emt 0:00:23]} Qd5 {[%emt 0:00:00]} 38. f6 {[%emt 0:02:01]} gxf6 {[%emt 0:00:00]} 39. Qf4 {[%emt 0:02:05]} f5 {[%emt 0:00:00]} 40. Nf6 {[%emt 0:07:19]} Rxe1+ {[%emt 0:00:00]} 41. Rxe1 {[%emt 0:00:03]} Qd6 {[%emt 0:00:00]} 42. Qxh6 {[%emt 0:00:15]} Qxf6 {[%emt 0:00:00]} 43. Qxf6+ {[%emt 0:00:05]} Rxf6 {[%emt 0:00:00]} 44. Re8+ {[%emt 0:00:01]} Bg8 {[%emt 0:00:00]} 45. Rxc8 {[%emt 0:00:05]} f4 {[%emt 0:00:00]} 46. Ne4 {[%emt 0:01:40]} Re6 {[%emt 0:00:00]} 47. Nc3 {[%emt 0:00:57]} Rd6 {[%emt 0:00:00]} 48. Rc7 {[%emt 0:00:46]} Rxd4 {[%emt 0:00:00]} 49. Rxb7 {[%emt 0:00:04]} Rd2 {[%emt 0:00:00]} 50. Ne4 {[%emt 0:00:40]} Rd1+ {[%emt 0:00:00]} 51. Kh2 {[%emt 0:00:04]} Bh7 {[%emt 0:00:00]} 52. Nf6 {[%emt 0:00:06]} Bf5 {[%emt 0:00:00]} 53. Rb8+ {[%emt 0:00:18]} Kg7 {[%emt 0:00:00]} 54. Nh5+ {[%emt 0:00:03]} Kh6 {[%emt 0:00:12]} 55. Nxf4 {[%emt 0:00:13]} Rd2 {[%emt 0:00:15]} 56. Kg3 {[%emt 0:00:46]} a5 {[%emt 0:00:25]} 57. Kf3 {[%emt 0:01:55]} a4 {[%emt 0:00:31]} 58. Rb4 {[%emt 0:00:35]} Bc2 {[%emt 0:00:40]} 59. Ke3 {[%emt 0:00:09]} Rd6 {[%emt 0:00:27]} 60. Rc4 {[%emt 0:00:19]} Bb3 {[%emt 0:00:22]} 61. Rc5 {[%emt 0:00:07]} Kg7 {[%emt 0:01:14]} 62. g4 {[%emt 0:00:29]} Bd1 {[%emt 0:01:48]} 63. g5 {[%emt 0:00:23]} 1-0

[Event "IX Iberoamericano Championship 2023"]
[Site "Panama City"]
[Date "2023.11.27"]
[Round "1.10"]
[White "Mejias Nunez, Rafael E."]
[Black "Espinosa Veloz, Ermes"]
[Result "0-1"]
[ECO "B30"]
[WhiteElo "2029"]
[BlackElo "2478"]
[Annotator "RC"]
[PlyCount "98"]
[EventDate "2023.11.27"]
[EventType "swiss"]
[EventCountry "PAN"]
[SourceTitle "playchess.com"]
[Source "ChessBase"]
[SourceQuality "1"]
[TimeControl "5400+30"]

1. e4 {[%emt 0:00:05]} c5 {[%emt 0:00:46]} 2. Nf3 {[%emt 0:00:59]} Nc6 {[%emt 0:00:08]} 3. Bb5 {[%emt 0:02:03]} e6 {[%emt 0:01:08]} 4. O-O {[%emt 0:01:39]} Nge7 {[%emt 0:00:37]} 5. Re1 {[%emt 0:01:26]} a6 {[%emt 0:00:44]} 6. Bf1 {[%emt 0:00:47]} d5 {[%emt 0:03:14]} 7. exd5 {[%emt 0:02:39]} Nxd5 {[%emt 0:00:05]} 8. Nc3 {[%emt 0:18:28]} Be7 {[%emt 0:01:22]} 9. Ne2 {[%emt 0:05:27]} O-O {[%emt 0:06:25]} 10. d4 {[%emt 0:00:59]} b5 {[%emt 0:00:09]} 11. c3 {[%emt 0:06:30]} Bb7 {[%emt 0:00:44]} 12. Ng3 {[%emt 0:07:50]} Qc7 {[%emt 0:05:08]} 13. a4 {[%emt 0:04:32]} cxd4 {[%emt 0:02:38]} 14. Nxd4 {[%emt 0:01:28]} Nxd4 {[%emt 0:01:23]} 15. Qxd4 {[%emt 0:01:10]} Bc6 {[%emt 0:09:14]} 16. axb5 {[%emt 0:08:50]} axb5 {[%emt 0:00:07]} 17. Rxa8 {[%emt 0:00:33]} Rxa8 {[%emt 0:00:10]} 18. Nh5 {[%emt 0:00:09]} Bf8 {[%emt 0:01:39]} 19. Rd1 {[%emt 0:04:03]} Ra4 {[%emt 0:02:27]} 20. Qd3 {[%emt 0:02:53]} g6 {[%emt 0:04:24]} 21. Ng3 {[%emt 0:07:04]} h5 {[%emt 0:04:36]} 22. b3 {[%emt 0:08:14]} Ra8 {[%emt 0:06:12]} 23. c4 {[%emt 0:02:46]} bxc4 {[%emt 0:01:24]} 24. bxc4 {[%emt 0:00:24]} Nb4 {[%emt 0:01:12]} 25. Qd4 {[%emt 0:05:10]} e5 {[%emt 0:08:39]} 26. Qh4 {[%emt 0:01:29]} Ba4 {[%emt 0:11:21]} 27. Rd2 {[%emt 0:04:11]} Be7 {[%emt 0:07:34]} 28. Qe4 {[%emt 0:00:55]} Bc6 {[%emt 0:00:07]} 29. Qe2 {[%emt 0:00:55]} Bg5 {[%emt 0:02:37]} 30. Rd1 {[%emt 0:00:59]} Ra2 {[%emt 0:00:13]} 31. Bb2 {[%emt 0:00:49]} h4 {[%emt 0:02:03]} 32. Bxe5 {[%emt 0:00:32]} Qa7 {[%emt 0:02:07]} 33. Qe1 {[%emt 0:00:28]} hxg3 {[%emt 0:04:55]} 34. hxg3 {[%emt 0:00:02]} Ba4 {[%emt 0:05:19]} 35. Bd4 {[%emt 0:00:59]} Qe7 {[%emt 0:00:10]} 36. Qxe7 {[%emt 0:00:28]} Bxe7 {[%emt 0:00:02]} 37. Re1 {[%emt 0:00:01]} Bf8 {[%emt 0:03:38]} 38. Ra1 {[%emt 0:01:00]} Rxa1 {[%emt 0:00:18]} 39. Bxa1 {[%emt 0:00:02]} Bc5 {[%emt 0:00:23]} 40. Bc3 {[%emt 0:00:50]} Bc2 {[%emt 0:01:41]} 41. Bxb4 {[%emt 0:00:34]} Bxb4 {[%emt 0:00:11]} 42. g4 {[%emt 0:00:33]} Bc5 {[%emt 0:00:25]} 43. Be2 {[%emt 0:00:13]} Kg7 {[%emt 0:00:09]} 44. g5 {[%emt 0:00:49]} Kf8 {[%emt 0:00:23]} 45. g3 {[%emt 0:00:30]} Ke7 {[%emt 0:00:07]} 46. Kg2 {[%emt 0:00:09]} Kd6 {[%emt 0:00:25]} 47. g4 {[%emt 0:00:51]} Ke5 {[%emt 0:00:17]} 48. Kg3 {[%emt 0:00:13]} Kd4 {[%emt 0:00:08]} 49. Bf3 {[%emt 0:00:48]} Bd6+ {[%emt 0:00:09]} 0-1

[Event "IX Iberoamericano Championship 2023"]
[Site "Panama City"]
[Date "2023.11.27"]
[Round "1.11"]
[White "Diaz Perez, Michel Alejandro"]
[Black "Pilarte, Rene"]
[Result "1-0"]
[ECO "D45"]
[WhiteElo "2459"]
[BlackElo "2010"]
[Annotator "RC"]
[PlyCount "85"]
[EventDate "2023.11.27"]
[EventType "swiss"]
[EventCountry "PAN"]
[SourceTitle "playchess.com"]
[Source "ChessBase"]
[SourceQuality "1"]
[TimeControl "5400+30"]

1. d4 {[%emt 0:00:22]} d5 {[%emt 0:00:06]} 2. c4 {[%emt 0:00:15]} c6 {[%emt 0:00:08]} 3. Nc3 {[%emt 0:00:13]} Nf6 {[%emt 0:00:08]} 4. e3 {[%emt 0:00:04]} e6 {[%emt 0:02:00]} 5. Nf3 {[%emt 0:00:04]} Nbd7 {[%emt 0:00:51]} 6. Be2 {[%emt 0:00:03]} Be7 {[%emt 0:00:19]} 7. O-O {[%emt 0:00:12]} O-O {[%emt 0:00:14]} 8. b3 {[%emt 0:00:09]} b6 {[%emt 0:01:10]} 9. Bb2 {[%emt 0:00:06]} Bb7 {[%emt 0:00:08]} 10. Rc1 {[%emt 0:00:12]} Rc8 {[%emt 0:03:11]} 11. Qd3 {[%emt 0:03:04]} c5 {[%emt 0:03:44]} 12. cxd5 {[%emt 0:01:24]} exd5 {[%emt 0:02:01]} 13. Rfd1 {[%emt 0:02:44]} Ne4 {[%emt 0:04:25]} 14. dxc5 {[%emt 0:04:17]} Ndxc5 {[%emt 0:07:38]} 15. Qb1 {[%emt 0:00:17]} Nxc3 {[%emt 0:07:29]} 16. Bxc3 {[%emt 0:01:20]} Ne4 {[%emt 0:00:11]} 17. Bd4 {[%emt 0:02:40]} Ba3 {[%emt 0:02:00]} 18. Bb2 {[%emt 0:03:06]} Qe7 {[%emt 0:08:55]} 19. Nd4 {[%emt 0:08:47]} Bxb2 {[%emt 0:02:29]} 20. Qxb2 {[%emt 0:00:05]} Qf6 {[%emt 0:00:20]} 21. Bf3 {[%emt 0:05:44]} g6 {[%emt 0:08:11]} 22. b4 {[%emt 0:05:15]} a6 {[%emt 0:04:41]} 23. a4 {[%emt 0:03:49]} h5 {[%emt 0:02:22]} 24. h3 {[%emt 0:08:04]} Rfe8 {[%emt 0:05:45]} 25. Rxc8 {[%emt 0:12:21]} Rxc8 {[%emt 0:01:31]} 26. Rc1 {[%emt 0:00:29]} Qd6 {[%emt 0:01:07]} 27. Rxc8+ {[%emt 0:06:20]} Bxc8 {[%emt 0:00:08]} 28. Bxe4 {[%emt 0:00:16]} dxe4 {[%emt 0:00:06]} 29. Qc3 {[%emt 0:00:07]} Bd7 {[%emt 0:06:38]} 30. a5 {[%emt 0:00:19]} bxa5 {[%emt 0:27:34]} 31. bxa5 {[%emt 0:00:03]} Qe5 {[%emt 0:00:00]} 32. Qb4 {[%emt 0:06:49]} Be6 {[%emt 0:00:00]} 33. Nc6 {[%emt 0:06:41]} Qa1+ {[%emt 0:00:00]} 34. Kh2 {[%emt 0:01:40]} Qf6 {[%emt 0:00:00]} 35. Qxe4 {[%emt 0:13:17]} Qxf2 {[%emt 0:00:00]} 36. Qe5 {[%emt 0:00:04]} Kh7 {[%emt 0:00:00]} 37. Nd4 {[%emt 0:04:14]} Bc4 {[%emt 0:00:00]} 38. Qg3 {[%emt 0:02:58]} Qf6 {[%emt 0:00:00]} 39. Nf3 {[%emt 0:00:31]} Qf5 {[%emt 0:00:00]} 40. Ng5+ {[%emt 0:01:02]} Kh6 {[%emt 0:00:00]} 41. h4 {[%emt 0:00:06]} Qxa5 {[%emt 0:00:00]} 42. Qf4 {[%emt 0:00:11]} Ba2 {[%emt 0:00:35]} 43. Ne6+ {[%emt 0:01:09]} 1-0

[Event "IX Iberoamericano Championship 2023"]
[Site "Panama City"]
[Date "2023.11.27"]
[Round "1.12"]
[White "Bravo Mallco, Kate Azumi"]
[Black "Matamoros Franco, Carlos S."]
[Result "0-1"]
[ECO "B12"]
[WhiteElo "2004"]
[BlackElo "2455"]
[Annotator "RC"]
[PlyCount "60"]
[EventDate "2023.11.27"]
[EventType "swiss"]
[EventCountry "PAN"]
[SourceTitle "playchess.com"]
[Source "ChessBase"]
[SourceQuality "1"]
[TimeControl "5400+30"]

1. e4 {[%emt 0:01:09]} c6 {[%emt 0:00:13]} 2. d4 {[%emt 0:00:19]} d5 {[%emt 0:00:05]} 3. e5 {[%emt 0:02:56]} c5 {[%emt 0:00:29]} 4. dxc5 {[%emt 0:00:31]} e6 {[%emt 0:00:26]} 5. Be3 {[%emt 0:02:39]} Nd7 {[%emt 0:01:24]} 6. Nf3 {[%emt 0:06:41]} Bxc5 {[%emt 0:00:23]} 7. Bxc5 {[%emt 0:01:19]} Nxc5 {[%emt 0:00:05]} 8. Nc3 {[%emt 0:05:00]} Ne7 {[%emt 0:08:44]} 9. Qd2 {[%emt 0:10:48]} Qb6 {[%emt 0:07:53]} 10. O-O-O {[%emt 0:25:31]} Bd7 11. Nd4 {[%emt 0:39:07]} O-O {[%emt 1:16:18]} 12. f4 {[%emt 0:00:30]} Rac8 {[%emt 0:00:30]} 13. Kb1 {[%emt 0:00:00]} Rfd8 {[%emt 0:00:00]} 14. Bd3 {[%emt 0:00:00]} Nc6 {[%emt 0:01:00]} 15. Nf3 {[%emt 0:00:00]} Nb4 {[%emt 0:00:30]} 16. Rhf1 {[%emt 0:01:03]} Ncxd3 {[%emt 0:00:00]} 17. cxd3 {[%emt 0:00:20]} d4 {[%emt 0:00:00]} 18. Ne4 {[%emt 0:01:03]} Rc2 {[%emt 0:00:00]} 19. Qxc2 {[%emt 0:00:04]} Nxc2 20. Kxc2 Ba4+ {[%emt 0:02:30]} 21. b3 {[%emt 0:00:24]} Bc6 {[%emt 0:00:30]} 22. Nfd2 {[%emt 0:02:06]} Qa6 {[%emt 0:00:30]} 23. a4 {[%emt 0:00:30]} b5 {[%emt 0:00:30]} 24. Nc5 {[%emt 0:00:00]} Qb6 {[%emt 0:00:00]} 25. Nde4 {[%emt 0:01:00]} bxa4 {[%emt 0:00:00]} 26. bxa4 {[%emt 0:00:30]} Bxe4 {[%emt 0:00:00]} 27. Nxe4 {[%emt 0:00:30]} Qb4 {[%emt 0:02:00]} 28. Rd2 {[%emt 0:00:00]} Qxa4+ {[%emt 0:00:30]} 29. Kb1 {[%emt 0:00:07]} Qb3+ {[%emt 0:00:00]} 30. Ka1 {[%emt 0:00:41]} Qa3+ {[%emt 0:00:00]} 0-1

[Event "IX Iberoamericano Championship 2023"]
[Site "Panama City"]
[Date "2023.11.27"]
[Round "1.13"]
[White "De La Riva Aguado, Oscar"]
[Black "Ortiz Lopera, Miguel Angel"]
[Result "1-0"]
[ECO "C26"]
[WhiteElo "2437"]
[BlackElo "2001"]
[Annotator "RC"]
[PlyCount "121"]
[EventDate "2023.11.27"]
[EventType "swiss"]
[EventCountry "PAN"]
[SourceTitle "playchess.com"]
[Source "ChessBase"]
[SourceQuality "1"]
[TimeControl "5400+30"]

1. e4 {[%emt 0:00:04]} e5 {[%emt 0:00:35]} 2. Nf3 {[%emt 0:00:19]} Nc6 {[%emt 0:00:09]} 3. Nc3 {[%emt 0:00:57]} Nf6 {[%emt 0:00:14]} 4. g3 {[%emt 0:00:26]} Bc5 {[%emt 0:03:21]} 5. Bg2 {[%emt 0:00:12]} d6 {[%emt 0:00:14]} 6. d3 {[%emt 0:00:09]} O-O {[%emt 0:02:15]} 7. O-O {[%emt 0:00:44]} Re8 {[%emt 0:01:16]} 8. h3 {[%emt 0:03:33]} Nd4 {[%emt 0:11:38]} 9. Na4 {[%emt 0:05:22]} Bd7 {[%emt 0:05:20]} 10. Nxc5 {[%emt 0:00:17]} dxc5 {[%emt 0:00:09]} 11. Nh4 {[%emt 0:02:47]} Bc6 {[%emt 0:09:27]} 12. c3 {[%emt 0:17:08]} Nb5 {[%emt 0:00:20]} 13. Qe2 {[%emt 0:04:46]} Nd6 {[%emt 0:04:48]} 14. c4 {[%emt 0:09:26]} b5 {[%emt 0:01:21]} 15. b3 {[%emt 0:00:07]} a5 {[%emt 0:03:25]} 16. Be3 {[%emt 0:01:34]} Nd7 {[%emt 0:03:29]} 17. a4 {[%emt 0:10:01]} bxa4 {[%emt 0:00:37]} 18. bxa4 {[%emt 0:00:06]} Rb8 {[%emt 0:01:16]} 19. Rfb1 {[%emt 0:00:05]} Rxb1+ {[%emt 0:11:29]} 20. Rxb1 {[%emt 0:00:20]} Qa8 {[%emt 0:00:11]} 21. Qe1 {[%emt 0:03:10]} f5 {[%emt 0:07:01]} 22. f3 {[%emt 0:05:04]} Rf8 {[%emt 0:02:14]} 23. Bd2 {[%emt 0:04:26]} Bxa4 {[%emt 0:02:28]} 24. Ra1 {[%emt 0:07:10]} Bc6 {[%emt 0:01:13]} 25. Bxa5 {[%emt 0:03:57]} Qd8 {[%emt 0:00:02]} 26. exf5 {[%emt 0:01:26]} Nxf5 {[%emt 0:00:32]} 27. Nxf5 {[%emt 0:00:47]} Rxf5 {[%emt 0:00:08]} 28. Qe3 {[%emt 0:00:42]} Qf6 {[%emt 0:01:57]} 29. Rf1 {[%emt 0:01:09]} Qd6 {[%emt 0:00:38]} 30. Bc3 {[%emt 0:00:06]} Rf8 {[%emt 0:04:54]} 31. Re1 {[%emt 0:01:53]} h6 {[%emt 0:09:22]} 32. h4 {[%emt 0:03:43]} Rd8 {[%emt 0:05:14]} 33. Kh2 {[%emt 0:01:37]} Nf6 {[%emt 0:01:18]} 34. Bxe5 {[%emt 0:03:57]} Qxd3 {[%emt 0:01:08]} 35. Bxc7 {[%emt 0:04:36]} Qxe3 {[%emt 0:00:32]} 36. Rxe3 {[%emt 0:00:08]} Rd2 {[%emt 0:00:09]} 37. Kg1 {[%emt 0:00:05]} Rd1+ {[%emt 0:02:19]} 38. Bf1 {[%emt 0:00:18]} Bd7 {[%emt 0:01:06]} 39. Kf2 {[%emt 0:00:12]} Kf7 {[%emt 0:02:24]} 40. Bb6 {[%emt 0:01:53]} Be6 {[%emt 0:00:37]} 41. Bxc5 {[%emt 0:00:05]} Rc1 {[%emt 0:00:11]} 42. Ba3 {[%emt 0:00:09]} Rc2+ {[%emt 0:00:17]} 43. Re2 {[%emt 0:00:04]} Rc3 {[%emt 0:00:58]} 44. Bb2 {[%emt 0:00:21]} Rb3 {[%emt 0:01:07]} 45. Rc2 {[%emt 0:00:41]} Bf5 {[%emt 0:00:33]} 46. Rd2 {[%emt 0:00:06]} Be4 {[%emt 0:01:08]} 47. Be2 {[%emt 0:00:47]} Bb7 {[%emt 0:00:36]} 48. Bd4 {[%emt 0:00:43]} Ba6 {[%emt 0:00:35]} 49. Ra2 {[%emt 0:00:59]} Bc8 {[%emt 0:01:07]} 50. Ra7+ {[%emt 0:00:19]} Rb7 {[%emt 0:00:22]} 51. Ke3 {[%emt 0:00:40]} Rxa7 {[%emt 0:00:13]} 52. Bxa7 {[%emt 0:00:06]} g5 {[%emt 0:00:32]} 53. hxg5 {[%emt 0:00:06]} hxg5 {[%emt 0:00:02]} 54. g4 {[%emt 0:00:43]} Ke6 {[%emt 0:00:32]} 55. Bd3 {[%emt 0:00:43]} Bb7 {[%emt 0:01:05]} 56. Bd4 {[%emt 0:00:42]} Nd7 {[%emt 0:00:30]} 57. Be4 {[%emt 0:00:46]} Bxe4 {[%emt 0:00:18]} 58. Kxe4 {[%emt 0:00:07]} Nb8 {[%emt 0:00:07]} 59. Be3 {[%emt 0:00:14]} Kf6 {[%emt 0:00:19]} 60. Kd5 {[%emt 0:00:14]} Nd7 {[%emt 0:00:13]} 61. c5 {[%emt 0:00:18]} 1-0